bitfinex-derivatives/quotes_SOLF0:USTF0_20241009
["timestamp","ask_amount","ask_price","bid_price","bid_amount"]
[1728487022059,3.5155,142.34,142.31,3.64092]
[1728487023045,3.5155,142.34,142.32,3.5158]
[1728487023553,3.5155,142.34,142.31,0.12502]
[1728487023853,3.5155,142.34,142.31,3.64082]
[1728487024350,3.5155,142.34,142.31,0.12502]
[1728487024556,19.6839,142.39,142.31,0.12502]
[1728487024769,1.4169,142.39,142.31,16.98502]
[1728487024950,1.3516,142.4,142.33,16.86]
[1728487025254,16.86,142.37,142.32,5.94]
[1728487025448,20.40987304,142.37,142.32,5.94]
[1728487025654,3.515,142.36,142.31,0.12502]
[1728487025856,26.28845665,142.37,142.31,0.12502]
[1728487026054,26.28845665,142.37,142.33,3.5154]
[1728487026055,3.5152,142.35,142.33,3.5154]
[1728487026352,26.28845665,142.37,142.33,3.5154]
[1728487026754,3.5151,142.35,142.33,3.5154]
[1728487027248,16.86,142.35,142.31,0.12502]
[1728487027552,3.5154,142.34,142.31,0.12502]
[1728487027740,3.5154,142.34,142.31,3.64082]
[1728487027943,7.2108,142.37,142.31,0.12502]
[1728487028251,22.7,142.41,142.33,16.86]
[1728487028555,3.514,142.4,142.33,22.7]
[1728487029157,3.5141,142.39,142.37,3.5145]
[1728487029450,3.5141,142.39,142.33,5.84]
[1728487029451,16.86,142.39,142.33,5.84]
[1728487029657,3.5142,142.39,142.36,3.5147]
[1728487029952,43.78,142.41,142.33,5.84]
[1728487030258,22.7,142.41,142.33,5.84]
[1728487030850,16.86,142.41,142.33,5.84]
[1728487031158,5.84,142.4,142.33,5.84]
[1728487031346,3.5142,142.39,142.33,5.84]
[1728487031864,3.5143,142.38,142.36,3.5147]
[1728487032050,5.84,142.4,142.36,3.5147]
[1728487032853,3.5142,142.39,142.36,3.5147]
[1728487033046,5.84,142.4,142.33,22.7]
[1728487033449,9.354,142.4,142.33,22.7]
[1728487033864,3.5135,142.42,142.33,22.7]
[1728487034054,22.82502,142.43,142.33,22.7]
[1728487034552,3.5138,142.41,142.33,22.7]
[1728487034751,22.82502,142.43,142.33,22.7]
[1728487035161,3.5139,142.4,142.38,3.5142]
[1728487035854,3.5139,142.4,142.33,22.7]
[1728487036048,22.82502,142.43,142.33,22.7]
[1728487036251,5.84,142.42,142.33,22.7]
[1728487036451,0.12502,142.43,142.41,3.5134]
[1728487036650,0.12502,142.43,142.37,16.86]
[1728487037263,16.86,142.42,142.33,29.7308]
[1728487037462,16.86,142.42,142.34,11.72343782]
[1728487037785,3.5138,142.4,142.33,29.7308]
[1728487038064,16.86,142.42,142.34,5.429229]
[1728487038263,3.5137,142.41,142.38,3.5142]
[1728487039469,16.86,142.42,142.33,29.7308]
[1728487039666,0.12502,142.43,142.35,16.86]
[1728487039969,0.12502,142.43,142.35,3.54180337]
[1728487040163,3.5138,142.4,142.37,3.5144]
[1728487040357,16.86,142.41,142.33,5.84]
[1728487040564,3.5142,142.39,142.36,3.5146]
[1728487040763,16.86,142.41,142.33,5.84]
[1728487041468,3.5141,142.39,142.37,3.5144]
[1728487041669,16.86,142.41,142.37,3.5144]
[1728487041870,3.5139,142.4,142.37,3.5144]
[1728487042565,3.5139,142.4,142.38,3.5143]
[1728487043163,3.5137,142.41,142.38,3.5143]
[1728487043565,0.12502,142.43,142.35,16.86]
[1728487044165,0.12502,142.43,142.42,3.5133]
[1728487050064,0.12502,142.43,142.38,2.7251]
[1728487051672,0.12502,142.43,142.39,5.44099313]
[1728487051863,0.12502,142.43,142.38,2.7251]
[1728487052064,0.12502,142.43,142.39,5.44155586]
[1728487052264,0.12502,142.43,142.38,2.7251]
[1728487052471,0.12502,142.43,142.42,3.5133]
[1728487054176,0.12502,142.49,142.42,16.86]
[1728487054474,0.12502,142.49,142.43,5.44275103]
[1728487054684,0.12502,142.49,142.48,3.5118]
[1728487060079,0.12502,142.49,142.48,9.2518]
[1728487061076,0.12502,142.55,142.48,5.74]
[1728487061277,0.12502,142.55,142.54,3.5104]
[1728487062078,0.12502,142.55,142.53,3.5104]
[1728487062285,0.12502,142.55,142.52,5.74]
[1728487062892,0.12502,142.55,142.54,3.5104]
[1728487076201,1e-08,142.55,142.54,9.2504]
[1728487081704,0.12502,142.61,142.54,26.1104]
[1728487082004,0.12502,142.61,142.6,3.5089]
[1728487082496,0.12502,142.67,142.6,16.86]
[1728487083200,0.12502,142.67,142.61,3.52238636]
[1728487083399,0.12502,142.67,142.59,22.6]
[1728487083595,3.5077,142.65,142.61,3.5084]
[1728487083801,16.86,142.66,142.59,22.6]
[1728487084107,20.3676,142.66,142.61,3.5084]
[1728487084800,3.5077,142.65,142.61,3.5084]
[1728487085207,16.86,142.66,142.62,3.5082]
[1728487085403,16.86,142.66,142.59,22.6]
[1728487085804,3.63232,142.67,142.63,3.5081]
[1728487086105,0.12502,142.67,142.6,3.42242305]
[1728487086300,0.12502,142.67,142.64,3.5077]
[1728487086494,0.12502,142.67,142.6,16.86]
[1728487086698,0.12502,142.67,142.61,1.3185]
[1728487086894,0.12502,142.67,142.63,3.5079]
[1728487087099,0.12502,142.67,142.62,3.58190283]
[1728487087502,3.63222,142.67,142.61,1.3185]
[1728487087703,16.98502,142.67,142.57,1.3525]
[1728487088002,16.86,142.65,142.6,3.5089]
[1728487088207,3.5082,142.63,142.6,3.5089]
[1728487088399,9.86060864,142.67,142.58,6.16]
[1728487088602,3.5081,142.64,142.6,3.5088]
[1728487089310,16.86,142.66,142.58,6.16]
[1728487089502,6.28502,142.67,142.58,6.16]
[1728487089703,0.12502,142.73,142.65,16.86]
[1728487089942,0.12502,142.73,142.65,20.37700694]
[1728487090810,0.12502,142.73,142.65,16.86]
[1728487091114,0.12502,142.73,142.7,3.5063]
[1728487091298,3.63072,142.73,142.68,6.16]
[1728487091701,0.12502,142.73,142.68,6.16]
[1728487092101,0.12502,142.73,142.67,6.16]
[1728487092401,3.63082,142.73,142.67,6.16]
[1728487092606,0.12502,142.73,142.67,23.02]
[1728487092806,0.12502,142.73,142.72,3.5059]
[1728487093004,0.12502,142.73,142.69,16.86]
[1728487093503,0.12502,142.73,142.71,3.506]
[1728487093804,0.12502,142.73,142.69,16.86]
[1728487094202,0.12502,142.73,142.72,3.5059]
[1728487098201,0.12502,142.73,142.71,9.6461]
[1728487098513,0.12502,142.73,142.71,6.14]
[1728487098902,0.12502,142.73,142.72,3.5059]
[1728487099505,0.12502,142.73,142.7,9.6462]
[1728487099898,0.12502,142.73,142.65,96.39786286]
[1728487100104,16.98502,142.73,142.65,96.39786286]
[1728487100311,0.12502,142.73,142.66,6.14]
[1728487100605,0.12502,142.73,142.71,3.5062]
[1728487100810,0.12502,142.73,142.7,6.14]
[1728487101211,0.12502,142.73,142.72,3.5059]
[1728487102509,0.12502,142.73,142.71,16.86]
[1728487102510,0.12502,142.79,142.71,18.2731]
[1728487102805,3.62932,142.79,142.71,18.2731]
[1728487103206,0.12502,142.79,142.75,3.505]
[1728487103407,3.5045,142.78,142.75,3.505]
[1728487104006,0.12502,142.79,142.73,3.5055]
[1728487104007,3.5051,142.76,142.73,3.5055]
[1728487104208,16.98502,142.79,142.72,6.14]
[1728487104799,3.5051,142.76,142.73,3.5057]
[1728487106713,3.5054,142.75,142.72,3.5058]
[1728487106911,16.86,142.77,142.67,16.98502]
[1728487107218,16.86,142.73,142.67,0.12502]
[1728487107408,0.12502,142.79,142.67,16.98502]
[1728487107608,16.98502,142.79,142.7,16.86]
[1728487107920,3.5048,142.77,142.73,3.5055]
[1728487108114,20.46068227,142.79,142.73,3.5055]
[1728487108909,20.46068227,142.79,142.71,9.6461]
[1728487109113,20.46068227,142.79,142.71,6.14]
[1728487109607,3.5052,142.75,142.72,3.5058]
[1728487110409,3.5052,142.75,142.71,6.14]
[1728487110611,3.5049,142.77,142.71,6.14]
[1728487111215,0.12502,142.79,142.74,3.5053]
[1728487111508,0.12502,142.79,142.72,16.86]
[1728487111914,3.5046,142.78,142.74,3.5054]
[1728487112502,3.62932,142.79,142.76,3.5049]
[1728487113210,3.62932,142.79,142.72,18.2067]
[1728487113211,0.12502,142.79,142.72,18.2067]
[1728487113512,3.5045,142.78,142.72,18.2067]
[1728487113710,3.5045,142.78,142.73,6.38]
[1728487114331,0.12502,142.79,142.73,6.38]
[1728487114332,3.62932,142.79,142.73,6.38]
[1728487114614,0.12502,142.79,142.73,6.38]
[1728487114811,0.12502,142.79,142.72,18.2067]
[1728487115017,3.5047,142.77,142.73,6.38]
[1728487115707,3.5047,142.77,142.74,3.5053]
[1728487116114,0.12502,142.79,142.7,16.86]
[1728487116115,16.98502,142.79,142.7,16.86]
[1728487116324,16.86,142.77,142.7,6.38]
[1728487117038,3.5051,142.76,142.73,3.5056]
[1728487117911,0.12502,142.79,142.74,6.38]
[1728487118319,16.98502,142.79,142.7,16.86]
[1728487118531,3.5051,142.76,142.73,3.5056]
[1728487118710,16.98502,142.79,142.71,6.38]
[1728487118915,0.12502,142.79,142.71,6.38]
[1728487119614,0.12502,142.79,142.75,3.5052]
[1728487119615,3.5046,142.78,142.75,3.5052]
[1728487121123,3.62942,142.79,142.73,3.5056]
[1728487121423,3.62942,142.79,142.73,16.86]
[1728487121616,0.12502,142.79,142.73,16.86]
[1728487122016,3.5045,142.78,142.75,3.505]
[1728487122245,0.12502,142.79,142.73,16.86]
[1728487122522,3.62942,142.79,142.75,3.505]
[1728487123025,3.62942,142.79,142.76,3.5049]
[1728487123221,3.62942,142.79,142.73,23.24]
[1728487123425,3.5045,142.78,142.75,3.505]
[1728487123625,0.12502,142.79,142.73,23.24]
[1728487124621,16.98502,142.79,142.69,16.86]
[1728487124830,16.98502,142.79,142.7,6.38]
[1728487125027,3.5053,142.75,142.72,3.5058]
[1728487125928,3.5048,142.77,142.74,3.5053]
[1728487126124,0.12502,142.79,142.75,16.86]
[1728487126326,0.12502,142.79,142.77,16.86]
[1728487126528,0.12502,142.79,142.78,9.8845]
[1728487128058,0.12502,142.85,142.78,6.38]
[1728487128254,0.12502,142.85,142.81,16.86]
[1728487128497,3.62782,142.85,142.82,3.5034]
[1728487128754,3.62782,142.85,142.81,16.86]
[1728487128956,3.62782,142.85,142.82,3.5033]
[1728487129253,0.12502,142.85,142.81,16.86]
[1728487129657,0.12502,142.85,142.84,3.503]
[1728487130361,0.12502,142.85,142.82,6.38]
[1728487130580,0.12502,142.85,142.81,16.86]
[1728487130759,0.12502,142.85,142.8,6.38]
[1728487130952,0.12502,142.85,142.8,9.8839]
[1728487130953,3.5032,142.84,142.8,9.8839]
[1728487131159,0.12502,142.85,142.8,3.5039]
[1728487131456,3.5031,142.84,142.8,3.5039]
[1728487132154,3.5031,142.84,142.79,6.38]
[1728487132353,0.12502,142.85,142.76,1.4397]
[1728487132556,0.12502,142.85,142.78,6.38]
[1728487132772,1.52112,142.85,142.79,3.5041]
[1728487132944,1.52112,142.85,142.77,6.38]
[1728487132945,3.5037,142.82,142.77,6.38]
[1728487133145,3.5037,142.82,142.75,18.2336]
[1728487133146,39.381,142.84,142.75,16.86]
[1728487133353,16.86,142.82,142.76,3.5048]
[1728487133547,16.86,142.82,142.75,6.38]
[1728487133548,3.5041,142.8,142.75,6.38]
[1728487133941,3.5041,142.8,142.77,3.5046]
[1728487134243,3.5038,142.81,142.77,3.5046]
[1728487134423,16.86,142.82,142.78,3.5043]
[1728487134625,16.86,142.82,142.75,6.38]
[1728487134824,20.3637,142.82,142.75,23.24]
[1728487135029,16.86,142.82,142.75,23.24]
[1728487135538,20.3636,142.82,142.79,3.5042]
[1728487136035,20.3636,142.82,142.77,3.5046]
[1728487136036,3.504,142.81,142.77,3.5046]
[1728487136432,16.86,142.82,142.77,3.5046]
[1728487136727,3.5041,142.8,142.77,3.5046]
[1728487138429,44.32,142.82,142.73,16.98502]
[1728487138633,3.5043,142.79,142.73,23.36502]
[1728487139132,16.86,142.79,142.73,0.12502]
[1728487139633,3.5044,142.79,142.75,3.5051]
[1728487139934,37.94,142.81,142.73,0.12502]
[1728487140625,16.86,142.81,142.73,0.12502]
[1728487140823,3.5038,142.81,142.78,3.5044]
[1728487141231,1.4328,142.83,142.76,16.86]
[1728487141439,1.4328,142.83,142.8,3.504]
[1728487141627,1.4328,142.83,142.76,16.86]
[1728487142036,3.5035,142.82,142.79,3.5041]
[1728487142436,1.4328,142.83,142.76,16.86]
[1728487142936,3.5036,142.82,142.79,3.5042]
[1728487144236,3.5036,142.82,142.75,6.38]
[1728487144432,3.504,142.8,142.75,6.38]
[1728487144637,16.86,142.81,142.73,0.12502]
[1728487144935,6.24,142.8,142.73,0.12502]
[1728487145132,6.24,142.8,142.75,3.5051]
[1728487145133,3.5046,142.78,142.75,3.5051]
[1728487145331,16.86,142.79,142.73,0.12502]
[1728487145635,3.5046,142.78,142.73,0.12502]
[1728487145935,18.3076,142.79,142.73,0.12502]
[1728487146138,3.5049,142.77,142.73,0.12502]
[1728487146338,3.5049,142.77,142.74,3.5053]
[1728487146536,3.52320152,142.78,142.73,0.12502]
[1728487146740,16.86,142.77,142.73,0.12502]
[1728487146947,21.81676008,142.77,142.73,0.12502]
[1728487147250,16.86,142.75,142.65,1.3538]
[1728487147431,16.86,142.73,142.65,1.3538]
[1728487148048,16.86,142.73,142.7,3.5063]
[1728487148377,16.86,142.75,142.67,16.98502]
[1728487148546,3.5056,142.74,142.67,16.98502]
[1728487148846,6.24,142.75,142.67,16.98502]
[1728487149548,3.5058,142.73,142.67,16.98502]
[1728487149753,6.24,142.75,142.71,3.506]
[1728487150039,1.395,142.77,142.69,16.86]
[1728487150548,1.395,142.77,142.73,3.5055]
[1728487150744,3.505,142.76,142.73,3.5055]
[1728487151045,1.395,142.77,142.74,3.5054]
[1728487151346,1.395,142.77,142.69,18.2623]
[1728487151544,18.255,142.77,142.71,3.5061]
[1728487151744,3.5058,142.73,142.67,6.36502]
[1728487151935,16.86,142.75,142.67,6.36502]
[1728487152245,16.86,142.75,142.71,3.506]
[1728487152446,3.5055,142.74,142.71,3.506]
[1728487153180,16.86,142.75,142.67,0.12502]
[1728487153346,20.3653,142.75,142.72,3.5059]
[1728487153549,16.86,142.75,142.67,0.12502]
[1728487154148,3.5057,142.73,142.7,3.5062]
[1728487154952,16.86,142.75,142.67,0.12502]
[1728487155248,18.255,142.77,142.67,0.12502]
[1728487155448,18.255,142.77,142.69,16.86]
[1728487155745,3.5051,142.76,142.72,3.5057]
[1728487156146,18.255,142.77,142.72,3.5057]
[1728487156452,3.5052,142.75,142.72,3.5057]
[1728487157250,3.5051,142.76,142.72,3.5057]
[1728487157452,18.255,142.77,142.72,3.5057]
[1728487157848,3.5054,142.75,142.72,3.5057]
[1728487158048,18.255,142.77,142.73,3.5057]
[1728487158553,3.5051,142.76,142.73,3.5057]
[1728487159452,3.5052,142.75,142.72,3.5058]
[1728487160457,3.5051,142.76,142.73,3.5056]
[1728487160751,1.395,142.77,142.69,16.86]
[1728487160954,3.5051,142.76,142.72,3.5057]
[1728487161345,3.5051,142.76,142.7,6.24]
[1728487161547,3.5051,142.76,142.73,3.5056]
[1728487162757,18.255,142.77,142.7,6.24]
[1728487162957,14.70410252,142.78,142.71,16.86]
[1728487163358,3.505,142.76,142.74,3.5053]
[1728487163570,3.505,142.76,142.7,6.24]
[1728487163860,3.5053,142.75,142.7,6.24]
[1728487164363,16.86,142.76,142.67,16.98502]
[1728487164558,3.5058,142.73,142.68,5.18571494]
[1728487164750,16.86,142.74,142.67,0.12502]
[1728487164951,3.506,142.72,142.69,3.5065]
[1728487165455,23.1,142.74,142.7,3.5063]
[1728487165763,3.5058,142.73,142.67,0.12502]
[1728487165965,23.1,142.74,142.67,0.12502]
[1728487166166,3.5053,142.75,142.72,3.5058]
[1728487166362,3.5053,142.75,142.67,0.12502]
[1728487166873,16.86,142.76,142.67,0.12502]
[1728487167068,1.435,142.77,142.69,16.86]
[1728487167361,7.675,142.77,142.69,16.86]
[1728487167561,11.1798,142.77,142.69,16.86]
[1728487167768,11.1798,142.77,142.74,3.5053]
[1728487169371,3.5051,142.76,142.73,3.5056]
[1728487169661,7.675,142.77,142.73,3.5056]
[1728487170562,3.505,142.76,142.73,3.5056]
[1728487170959,3.5052,142.75,142.72,3.5058]
[1728487171261,16.86,142.76,142.67,16.98502]
[1728487171504,3.5053,142.75,142.72,3.5059]
[1728487171867,16.86,142.76,142.67,16.98502]
[1728487172064,3.5053,142.75,142.72,3.5058]
[1728487172272,21.08,142.69,142.52,9.50590965]
[1728487172470,21.08,142.69,142.51,2.6876]
[1728487172471,16.86,142.56,142.51,2.6876]
[1728487172659,16.86,142.61,142.51,1.3242]
[1728487172660,16.86,142.54,142.51,1.3242]
[1728487172858,27.52,142.59,142.49,0.12502]
[1728487172859,16.86,142.52,142.49,0.12502]
[1728487173078,3.5111,142.51,142.49,0.12502]
[1728487173593,16.86,142.5,142.49,0.12502]
[1728487173768,16.86,142.52,142.49,0.12502]
[1728487173965,16.86,142.5,142.49,0.12502]
[1728487174366,6.44,142.55,142.49,0.12502]
[1728487174367,3.511,142.52,142.49,0.12502]
[1728487174576,26.97,142.53,142.49,0.12502]
[1728487175069,3.5109,142.52,142.49,0.12502]
[1728487175689,6.44,142.55,142.49,0.12502]
[1728487175690,3.5104,142.54,142.49,0.12502]
[1728487176866,6.44,142.55,142.49,0.12502]
[1728487177070,9.9501,142.55,142.49,3.63652]
[1728487178169,3.5106,142.54,142.49,0.12502]
[1728487179472,3.5107,142.53,142.49,0.12502]
[1728487179881,3.5107,142.53,142.49,3.63662]
[1728487180373,3.5105,142.54,142.49,3.63642]
[1728487180875,6.44,142.55,142.49,3.63642]
[1728487182373,3.5107,142.53,142.49,0.12502]
[1728487185065,3.5106,142.54,142.49,3.63642]
[1728487185269,6.44,142.55,142.49,3.63642]
[1728487186372,3.5106,142.53,142.49,3.63642]
[1728487186874,6.44,142.55,142.49,0.12502]
[1728487187107,9.9503,142.55,142.51,3.5111]
[1728487188876,26.97,142.58,142.49,0.12502]
[1728487189084,33.43,142.58,142.49,0.12502]
[1728487189481,3.51,142.56,142.52,3.5107]
[1728487190973,33.43,142.58,142.49,0.12502]
[1728487191179,33.43,142.58,142.49,3.58146715]
[1728487191567,3.51,142.56,142.52,3.5107]
[1728487191977,3.51,142.56,142.49,3.58146715]
[1728487193279,3.51,142.56,142.53,3.5105]
[1728487193480,26.97,142.58,142.49,3.58146715]
[1728487193681,26.97,142.58,142.5,1.3957]
[1728487194179,3.5101,142.56,142.52,3.5108]
[1728487194480,3.5101,142.56,142.5,1.3957]
[1728487194783,3.5101,142.56,142.53,3.5105]
[1728487196281,3.5098,142.57,142.53,3.5105]
[1728487196497,16.86,142.58,142.53,3.5105]
[1728487197083,3.5098,142.57,142.53,3.5105]
[1728487197282,16.86,142.58,142.53,3.5105]
[1728487198079,3.5101,142.56,142.49,0.12502]
[1728487198284,16.86,142.56,142.51,3.5109]
[1728487198486,16.86,142.56,142.49,0.12502]
[1728487198680,3.5103,142.55,142.49,0.12502]
[1728487198879,3.5103,142.55,142.52,3.5107]
[1728487200581,16.86,142.56,142.49,0.12502]
[1728487200783,3.5109,142.52,142.49,3.63652]
[1728487201102,6.95787259,142.52,142.49,0.12502]
[1728487201391,3.5109,142.52,142.49,0.12502]
[1728487201713,23.32,142.54,142.49,0.12502]
[1728487201886,23.32,142.54,142.5,3.5112]
[1728487202184,3.5107,142.53,142.5,3.5112]
[1728487202682,23.32,142.54,142.49,0.12502]
[1728487203585,23.32,142.54,142.5,3.5112]
[1728487203586,3.5107,142.53,142.5,3.5112]
[1728487203993,23.32,142.54,142.49,0.12502]
[1728487204594,3.5107,142.53,142.5,3.5112]
[1728487205390,23.32,142.54,142.49,0.12502]
[1728487205591,6.46,142.54,142.53,3.5106]
[1728487205796,6.46,142.54,142.49,0.12502]
[1728487206094,6.46,142.54,142.52,3.5109]
[1728487207489,6.46,142.54,142.49,0.12502]
[1728487207991,1.434,142.59,142.5,6.42]
[1728487208291,3.5095,142.58,142.55,3.51]
[1728487209004,4.9433,142.59,142.51,18.2665]
[1728487209794,3.5093,142.59,142.51,18.2665]
[1728487210092,3.5093,142.59,142.56,3.5098]
[1728487211491,16.86,142.6,142.56,3.5098]
[1728487211698,20.369,142.6,142.56,3.5098]
[1728487213495,20.369,142.6,142.57,3.5096]
[1728487213694,16.86,142.6,142.52,2.7606]
[1728487213989,3.63382,142.61,142.54,6.42]
[1728487214196,3.63382,142.61,142.55,16.86]
[1728487214590,0.12502,142.61,142.58,3.5092]
[1728487214784,0.12502,142.61,142.55,16.86]
[1728487215190,16.86,142.6,142.52,9.1806]
[1728487215802,3.5093,142.59,142.55,3.51]
[1728487216101,3.5093,142.59,142.52,9.1806]
[1728487216485,16.86,142.6,142.52,9.1806]
[1728487216693,20.369,142.6,142.56,3.5097]
[1728487216999,20.369,142.6,142.52,26.0406]
[1728487217496,20.369,142.6,142.57,3.5095]
[1728487217898,16.86,142.6,142.52,26.0406]
[1728487218095,3.5093,142.59,142.56,3.5099]
[1728487218986,20.369,142.6,142.57,3.5096]
[1728487219794,16.86,142.6,142.52,26.0406]
[1728487220002,0.12502,142.61,142.59,3.509]
[1728487220591,0.12502,142.61,142.6,3.5089]
[1728487220805,0.12502,142.61,142.57,18.2642]
[1728487222401,0.12502,142.61,142.6,3.5089]
[1728487224599,0.12502,142.61,142.6,9.9289]
[1728487227004,0.12502,142.61,142.57,1.4042]
[1728487227299,0.12502,142.61,142.6,3.5089]
[1728487230597,0.12502,142.61,142.58,3.5093]
[1728487230598,3.63382,142.61,142.58,3.5093]
[1728487231205,0.12502,142.61,142.6,3.5089]
[1728487232399,0.12502,142.61,142.55,6.42]
[1728487233035,0.12502,142.61,142.59,3.509]
[1728487234409,3.5089,142.6,142.54,78.18979303]
[1728487234612,16.86,142.6,142.54,78.18979303]
[1728487234907,23.20502,142.61,142.54,78.18979303]
[1728487235118,23.20502,142.61,142.58,3.5092]
[1728487235305,0.12502,142.61,142.54,78.18979303]
[1728487235715,0.12502,142.61,142.59,3.5091]
[1728487235907,0.12502,142.61,142.54,78.18979303]
[1728487236107,0.12502,142.61,142.55,16.86]
[1728487236307,0.12502,142.61,142.6,3.5089]
[1728487238502,0.12502,142.61,142.55,16.86]
[1728487238705,0.12502,142.61,142.59,3.5091]
[1728487238904,0.12502,142.61,142.55,16.86]
[1728487239414,0.12502,142.61,142.59,3.5089]
[1728487239612,0.12502,142.61,142.55,16.86]
[1728487239801,0.12502,142.61,142.59,3.5089]
[1728487240113,0.12502,142.61,142.55,16.86]
[1728487240415,0.12502,142.61,142.6,3.5089]
[1728487241616,0.12502,142.61,142.58,3.5092]
[1728487241816,0.12502,142.61,142.54,78.18979303]
[1728487242023,0.12502,142.61,142.55,16.86]
[1728487242220,0.12502,142.61,142.6,3.5089]
[1728487244118,0.12502,142.61,142.57,3.5094]
[1728487244319,3.63372,142.61,142.53,25.8296]
[1728487244518,0.12502,142.61,142.59,3.509]
[1728487245116,0.12502,142.61,142.54,3.43181359]
[1728487245316,0.12502,142.61,142.58,3.5093]
[1728487245717,3.63382,142.61,142.58,3.5093]
[1728487247646,3.5093,142.59,142.56,3.5099]
[1728487247832,3.5093,142.59,142.53,8.9696]
[1728487248219,3.5093,142.59,142.57,3.5096]
[1728487248417,16.98502,142.61,142.53,29.34145606]
[1728487248816,16.98502,142.61,142.57,3.5094]
[1728487249028,3.509,142.6,142.57,3.5094]
[1728487250426,3.509,142.6,142.53,12.48145606]
[1728487250621,3.509,142.6,142.58,3.5094]
[1728487251523,16.98502,142.61,142.53,2.7496]
[1728487251723,3.5095,142.58,142.53,8.9696]
[1728487252228,20.3693,142.59,142.56,3.5097]
[1728487253323,16.86,142.59,142.52,78.19968685]
[1728487253526,16.86,142.57,142.5,6.22]
[1728487254028,20.28632885,142.59,142.5,6.22]
[1728487254233,16.86,142.57,142.5,6.22]
[1728487254524,16.86,142.57,142.51,3.5109]
[1728487254726,16.86,142.57,142.49,0.12502]
[1728487255932,3.51,142.56,142.49,0.12502]
[1728487257035,3.51,142.56,142.53,3.5105]
[1728487257036,3.5101,142.56,142.53,3.5105]
[1728487258055,16.86,142.58,142.55,3.51]
[1728487258634,3.5097,142.57,142.55,3.51]
[1728487258837,16.86,142.58,142.55,3.51]
[1728487259227,20.3695,142.58,142.55,3.51]
[1728487259428,3.5095,142.58,142.56,3.5098]
[1728487260530,16.98502,142.61,142.52,23.08]
[1728487260835,23.20502,142.61,142.53,1.3903]
[1728487261026,26.71372,142.61,142.58,3.5093]
[1728487261332,0.12502,142.61,142.56,16.86]
[1728487261531,0.12502,142.61,142.56,23.08]
[1728487261730,0.12502,142.61,142.6,3.5089]
[1728487266048,0.12502,142.61,142.54,23.1157409]
[1728487266337,0.12502,142.61,142.55,6.16]
[1728487266736,0.12502,142.61,142.55,9.70209905]
[1728487266928,0.12502,142.61,142.55,6.16]
[1728487267136,3.63382,142.61,142.55,6.16]
[1728487267448,0.12502,142.61,142.55,6.16]
[1728487267643,3.5095,142.58,142.53,1.3903]
[1728487267938,3.5095,142.58,142.52,16.86]
[1728487267939,3.45030242,142.58,142.54,3.5102]
[1728487268143,3.5101,142.56,142.51,6.16]
[1728487268542,16.86,142.56,142.53,3.5104]
[1728487268942,16.86,142.56,142.51,6.16]
[1728487269141,3.5103,142.55,142.52,3.5108]
[1728487269740,3.5103,142.55,142.53,3.5106]